fUSD/lending_fUSD_20250330
["ID","MTS","AMOUNT","RATE_DAILY","PERIOD"]
[356881788,1743367023833,214.71365644,0.00033484,30]
[356881789,1743367110276,681.606,0.000147,2]
[356881790,1743367202816,350.0,0.0001495,3]
[356881792,1743367321029,350.0,0.0001495,3]
[356881793,1743367322881,-176.5791382,0.000149,2]
[356881794,1743367327085,-191.65057864,0.000149,2]
[356881798,1743367449766,368.2297,0.000148,2]
[356881805,1743367488703,169.0,0.00033484,30]
[356881808,1743367504042,-150.0,0.00014899,2]
[356881823,1743367681067,350.0,0.0001495,3]
[356881824,1743367801610,350.0,0.0001495,3]
[356881826,1743367832259,-557.72081122,0.000149,2]
[356881827,1743367832315,-74.04947194,0.000149,2]
[356881828,1743367832324,-1305.0748,0.000149,2]
[356881829,1743367832333,-195.44871632,0.000149,2]
[356881830,1743367832343,-268.2313,0.000149,2]
[356881831,1743367832351,-7159.39571174,0.000149,2]
[356881844,1743367838041,-9696.43,0.000149,2]
[356881846,1743367838202,-742.27157023,0.000149,2]
[356881847,1743367838258,-2553.78501903,0.000149,2]
[356881874,1743367840355,-16729.31372202,0.000149,2]
[356881875,1743367840367,-3868.70916394,0.000149,2]
[356881876,1743367840377,-2500.0,0.000149,2]
[356881877,1743367840386,-638.08578392,0.000149,2]
[356881878,1743367840396,-16134.61394893,0.00015,2]
[356881879,1743367840407,-25413.51930271,0.00015,2]
[356881880,1743367840419,-252.63575312,0.00015,2]
[356881886,1743367841999,-214.86367231,0.000149,2]
[356881897,1743367844885,-8301.19941907,0.000149,2]
[356881898,1743367844894,-159966.8609019,0.00015,2]
[356881899,1743367845557,-49000.0,0.00015,2]
[356881901,1743367846123,-1871.59164285,0.00015,2]
[356881902,1743367846135,-613.0925,0.00015,2]
[356881903,1743367847451,-225.4132823,0.00015,2]
[356881904,1743367860992,-189.37567904,0.000149,2]
[356881905,1743367874719,-237.993082,0.00014899,2]
[356881906,1743367923741,178.75686,0.00015,13]
[356881907,1743368161817,-208.67237705,0.00014899,2]
[356881908,1743368229048,178.75687,0.0001735,18]
[356881909,1743368229094,178.75687,0.0001985,23]
[356881910,1743368282807,-150.0,0.00014899,2]
[356881911,1743368309699,-810.62432096,0.000149,2]
[356881912,1743368309720,-610.3522,0.000149,2]
[356881913,1743368309743,-2652.32082081,0.000149,2]
[356881914,1743368309763,-153.02435752,0.000149,2]
[356881915,1743368309785,-2500.0,0.000149,2]
[356881916,1743368309806,-2977.4935,0.000149,2]
[356881917,1743368309827,-5677.37539426,0.000149,2]
[356881918,1743368309850,-425.39052262,0.000149,2]
[356881919,1743368309871,-178.44778632,0.00014999,2]
[356881920,1743368309896,-351114.97109751,0.00015,2]
[356881921,1743368310282,657.263,0.000147,2]
[356881923,1743368380894,-822.3616,0.000149,2]
[356881924,1743368380916,-153.02435752,0.000149,2]
[356881925,1743368380937,-170.82316711,0.000149,2]
[356881926,1743368380958,-274.0,0.00014999,2]
[356881927,1743368380981,-691779.79087537,0.00015,2]
[356881928,1743368461310,-3784.9169295,0.000149,2]
[356881929,1743368461336,-500.0,0.000149,2]
[356881930,1743368461361,-500.0,0.000149,2]
[356881931,1743368461385,-1000.0,0.000149,2]
[356881932,1743368461409,-283.59368174,0.000149,2]
[356881933,1743368461432,-2500.0,0.000149,2]
[356881934,1743368461455,-539.80639723,0.00014973,2]
[356881935,1743368461479,-500.0,0.00014999,2]
[356881936,1743368461507,-500.0,0.00014999,2]
[356881937,1743368461532,-500.0,0.00014999,2]
[356881938,1743368461557,-468.3,0.00014999,2]
[356881939,1743368461585,-80823.38299153,0.00015,2]
[356881940,1743368562256,-219.1188399,0.000149,2]
[356881941,1743368562280,-2523.277953,0.000149,2]
[356881942,1743368562302,-189.0624545,0.000149,2]
[356881943,1743368562324,-218.7,0.00014999,2]
[356881944,1743368562351,-722699.8407526,0.00015,2]
[356881945,1743368606910,-170.82316711,0.000149,2]
[356881946,1743368606933,-1000.0,0.000149,2]
[356881947,1743368606958,-309579.17683289,0.00015,2]
[356881948,1743368656984,-2500.0,0.000149,2]
[356881949,1743368657006,-167.52747108,0.000149,2]
[356881950,1743368657029,-243.0,0.00014999,2]
[356881951,1743368657051,-517.09188311,0.00014999,2]
[356881952,1743368657076,-16572.38064581,0.00015,2]
[356881953,1743368657594,-20000.0,0.00015,2]
[356881954,1743368658096,-20000.0,0.00015,2]
[356881955,1743368658546,-20000.0,0.00015,2]
[356881956,1743368659015,-20000.0,0.00015,2]
[356881957,1743368659526,-20000.0,0.00015,2]
[356881958,1743368659736,-20000.0,0.00015,2]
[356881959,1743368660143,-20000.0,0.00015,2]
[356881960,1743368660477,-20000.0,0.00015,2]
[356881961,1743368660846,-20000.0,0.00015,2]
[356881962,1743368661209,-20000.0,0.00015,2]
[356881963,1743368661613,-20000.0,0.00015,2]
[356881964,1743368661949,-20000.0,0.00015,2]
[356881965,1743368662393,-20000.0,0.00015,2]
[356881966,1743368662773,-1682.185302,0.000149,2]
[356881967,1743368662800,-18317.814698,0.00015,2]
[356881968,1743368663398,-20000.0,0.00015,2]
[356881969,1743368663848,-20000.0,0.00015,2]
[356881970,1743368664424,-20000.0,0.00015,2]
[356881971,1743368674385,-382.73223365,0.000149,2]
[356881972,1743368674410,-9617.26776635,0.00015,2]
[356881973,1743368674782,-10000.0,0.00015,2]
[356881974,1743368676057,-10000.0,0.00015,2]
[356881975,1743368676624,-10000.0,0.00015,2]
[356881976,1743368676941,-10000.0,0.00015,2]
[356881977,1743368677302,-10000.0,0.00015,2]
[356881978,1743368683769,-100000.0,0.00015,2]
[356881979,1743368684664,-100000.0,0.00015,2]
[356881980,1743368685994,-100000.0,0.00015,2]
[356881981,1743368691884,-550.0,0.00015,2]
[356881982,1743368727419,-672.64791423,0.000149,2]
[356881983,1743368727445,-9327.35208577,0.00015,2]
[356881984,1743368727837,-10000.0,0.00015,2]
[356881985,1743368728254,-10000.0,0.00015,2]
[356881986,1743368728708,-10000.0,0.00015,2]
[356881987,1743368729060,-10000.0,0.00015,2]
[356881988,1743368729448,-10000.0,0.00015,2]
[356881989,1743368735915,-5532.1253,0.000149,2]
[356881990,1743368735940,-14467.8747,0.00015,2]
[356881991,1743368736196,-20000.0,0.00015,2]
[356881992,1743368736594,-20000.0,0.00015,2]
[356881993,1743368736952,-20000.0,0.00015,2]
[356881994,1743368738118,-20000.0,0.00015,2]
[356881995,1743368738194,-20000.0,0.00015,2]
[356881996,1743368738251,-20000.0,0.00015,2]
[356881997,1743368745406,-50000.0,0.00015,2]
[356881998,1743368745965,-50000.0,0.00015,2]
[356881999,1743368746182,-50000.0,0.00015,2]
[356882000,1743368746639,-50000.0,0.00015,2]
[356882001,1743368750466,-50000.0,0.00015,2]
[356882002,1743368751676,-50000.0,0.00015,2]
[356882003,1743368752247,-50000.0,0.00015,2]
[356882004,1743368766278,-150.0,0.00014999,2]
[356882005,1743368766306,-38050.0,0.00015,2]
[356882006,1743368797770,-250.00000001,0.000149,2]
[356882007,1743368797797,-4749.99999999,0.00015,2]
[356882008,1743368798206,-5000.0,0.00015,2]
[356882009,1743368798674,-5000.0,0.00015,2]
[356882010,1743368799127,-5000.0,0.00015,2]
[356882011,1743368799515,-5000.0,0.00015,2]
[356882012,1743368805627,-1000.0,0.000149,2]
[356882013,1743368806196,-1000.0,0.00015,2]
[356882014,1743368806509,-1000.0,0.00015,2]
[356882015,1743368806906,-1000.0,0.00015,2]
[356882016,1743368807290,-1000.0,0.00015,2]
[356882017,1743368807670,-1000.0,0.00015,2]
[356882018,1743368812929,-150.0,0.00015,2]
[356882019,1743368813244,-150.0,0.00015,2]
[356882020,1743368813761,-150.0,0.00015,2]
[356882021,1743368814009,-150.0,0.00015,2]
[356882022,1743368814354,-150.0,0.00015,2]
[356882023,1743368815105,-150.0,0.00015,2]
[356882024,1743368823885,178.75687,0.00015,13]
[356882025,1743368832120,-2500.0,0.000149,2]
[356882026,1743368832143,-170.82316711,0.000149,2]
[356882027,1743368832170,-7329.17683289,0.00015,2]
[356882028,1743368832435,-10000.0,0.00015,2]
[356882029,1743368832869,-10000.0,0.00015,2]
[356882030,1743368833190,-10000.0,0.00015,2]
[356882031,1743368833620,-10000.0,0.00015,2]
[356882032,1743368833942,-10000.0,0.00015,2]
[356882033,1743368834346,-10000.0,0.00015,2]
[356882034,1743368834663,-10000.0,0.00015,2]
[356882035,1743368835011,-10000.0,0.00015,2]
[356882036,1743368835411,-10000.0,0.00015,2]
[356882037,1743368835866,-10000.0,0.00015,2]
[356882038,1743368841428,-20000.0,0.00015,2]
[356882039,1743368841945,-20000.0,0.00015,2]
[356882040,1743368842194,-20000.0,0.00015,2]
[356882041,1743368842513,-20000.0,0.00015,2]
[356882042,1743368842844,-20000.0,0.00015,2]
[356882043,1743368850669,-50000.0,0.00015,2]
[356882044,1743368851074,-50000.0,0.00015,2]
[356882045,1743368851650,-50000.0,0.00015,2]
[356882046,1743368851888,-50000.0,0.00015,2]
[356882047,1743368852281,-50000.0,0.00015,2]
[356882048,1743368852653,-50000.0,0.00015,2]
[356882049,1743368853417,-50000.0,0.00015,2]
[356882050,1743368857064,-50000.0,0.00015,2]
[356882051,1743368858997,-50000.0,0.00015,2]
[356882052,1743368866526,-10000.0,0.00015,2]
[356882053,1743368879667,-700.0,0.00015,2]
[356882054,1743368889845,-4000.0,0.00015,2]
[356882055,1743368910743,800.0,0.000146,5]
[356882056,1743368912897,1700.0,0.000147,5]
[356882057,1743368914005,1224.28478278,0.00014999,5]
[356882058,1743368915034,2500.0,0.000148,5]
[356882059,1743368917137,3400.0,0.000149,5]
[356882060,1743368930184,-492.4067,0.000149,2]
[356882061,1743368930209,-507.5933,0.00015,2]
[356882062,1743368930661,-1000.0,0.00015,2]
[356882063,1743368931069,-1000.0,0.00015,2]
[356882064,1743368931386,-1000.0,0.00015,2]
[356882065,1743368931681,-1000.0,0.00015,2]
[356882066,1743368932019,-1000.0,0.00015,2]
[356882067,1743368932356,-1000.0,0.00015,2]
[356882068,1743368932713,-1000.0,0.00015,2]
[356882069,1743368932975,-1000.0,0.00015,2]
[356882070,1743368933325,-1000.0,0.00015,2]
[356882071,1743368933803,-1000.0,0.00015,2]
[356882072,1743368934242,-1000.0,0.00015,2]
[356882073,1743368934571,-1000.0,0.00015,2]
[356882074,1743368934923,-1000.0,0.00015,2]
[356882075,1743368935334,-1000.0,0.00015,2]
[356882076,1743368935610,-1000.0,0.00015,2]
[356882077,1743368936175,-1000.0,0.00015,2]
[356882078,1743368936612,-1000.0,0.00015,2]
[356882079,1743368937037,-1000.0,0.00015,2]
[356882080,1743368937452,-1000.0,0.00015,2]
[356882081,1743368937803,-1000.0,0.00015,2]
[356882082,1743368938201,-1000.0,0.00015,2]
[356882083,1743368938703,-1000.0,0.00015,2]
[356882084,1743368939086,-1000.0,0.00015,2]
[356882085,1743368939452,-1000.0,0.00015,2]
[356882086,1743368939886,-1000.0,0.00015,2]
[356882087,1743368940199,-1000.0,0.00015,2]
[356882088,1743368940623,-1000.0,0.00015,2]
[356882089,1743368941064,-1000.0,0.00015,2]
[356882090,1743368945826,-150.0,0.00015,2]
[356882091,1743368946434,-150.0,0.00015,2]
[356882092,1743368946857,-150.0,0.00015,2]
[356882093,1743368947289,-150.0,0.00015,2]
[356882094,1743368949369,-150.0,0.00015,2]
[356882095,1743368949725,-150.0,0.00015,2]
[356882096,1743368950016,-150.0,0.00015,2]
[356882097,1743368950342,-150.0,0.00015,2]
[356882098,1743368950644,-150.0,0.00015,2]
[356882099,1743368951088,-150.0,0.00015,2]
[356882100,1743368951415,-150.0,0.00015,2]
[356882101,1743368951869,-150.0,0.00015,2]
[356882102,1743368952214,-150.0,0.00015,2]
[356882103,1743368952482,-150.0,0.00015,2]
[356882104,1743368952790,-150.0,0.00015,2]
[356882105,1743368953121,-150.0,0.00015,2]
[356882106,1743368953422,-150.0,0.00015,2]
[356882107,1743368953757,-150.0,0.00015,2]
[356882108,1743368954142,-150.0,0.00015,2]
[356882109,1743368954432,-150.0,0.00015,2]
[356882110,1743368960648,-10000.0,0.00015,2]
[356882111,1743368961178,-10000.0,0.00015,2]
[356882112,1743368961498,-10000.0,0.00015,2]
[356882113,1743368961933,-10000.0,0.00015,2]
[356882114,1743368962406,-10000.0,0.00015,2]
[356882115,1743368962813,-10000.0,0.00015,2]
[356882116,1743368963232,-10000.0,0.00015,2]
[356882117,1743368963670,-10000.0,0.00015,2]
[356882118,1743368964083,-10000.0,0.00015,2]
[356882119,1743368964576,-10000.0,0.00015,2]
[356882120,1743368964853,-10000.0,0.00015,2]
[356882121,1743368965272,-10000.0,0.00015,2]
[356882122,1743368965587,-10000.0,0.00015,2]
[356882123,1743368965937,-10000.0,0.00015,2]
[356882124,1743368966324,-10000.0,0.00015,2]
[356882125,1743368966796,-10000.0,0.00015,2]
[356882126,1743368967202,-10000.0,0.00015,2]
[356882127,1743368967609,-10000.0,0.00015,2]
[356882128,1743368967925,-10000.0,0.00015,2]
[356882129,1743368968365,-10000.0,0.00015,2]
[356882130,1743368968780,-10000.0,0.00015,2]
[356882131,1743368969137,-10000.0,0.00015,2]
[356882132,1743368969450,-10000.0,0.00015,2]
[356882133,1743368969923,-10000.0,0.00015,2]
[356882134,1743368970367,-10000.0,0.00015,2]
[356882135,1743368989329,1000.0,0.000149,2]
[356882136,1743368994237,219.1188399,0.000149,2]
[356882137,1743369009430,-2500.0,0.000149,2]
[356882138,1743369009461,-47500.0,0.00015,2]
[356882139,1743369009922,-50000.0,0.00015,2]
[356882140,1743369011237,-365.67065678,0.0001499,2]
[356882141,1743369011263,-49634.32934322,0.00015,2]
[356882142,1743369011952,-50000.0,0.00015,2]
[356882143,1743369012636,-50000.0,0.00015,2]
[356882144,1743369013324,-50000.0,0.00015,2]
[356882145,1743369014021,-50000.0,0.00015,2]
[356882146,1743369015780,-50000.0,0.00015,2]
[356882147,1743369021579,-10000.0,0.00015,2]
[356882148,1743369023459,-10000.0,0.00015,2]
[356882149,1743369030452,-1000.0,0.00015,2]
[356882150,1743369031063,-1000.0,0.00015,2]
[356882151,1743369031828,-1000.0,0.00015,2]
[356882154,1743369032252,-2384.29566,0.00015,2]
[356882155,1743369032406,-86.39058926,0.00015,2]
[356882156,1743369032418,-923.95,0.00015,2]
[356882157,1743369032429,-620.335,0.00015,2]
[356882158,1743369032440,-374.252,0.00015,2]
[356882159,1743369032452,-416.92271893,0.00015,2]
[356882160,1743369032526,-1000.0,0.00015,2]
[356882161,1743369033556,-1000.0,0.00015,2]
[356882162,1743369034888,-1000.0,0.00015,2]
[356882167,1743369038071,-1000.0,0.00015,2]
[356882175,1743369038171,-384.1090751,0.00015,2]
[356882176,1743369038226,-909.39530615,0.00015,2]
[356882177,1743369038344,-6.23960613,0.00015,2]
[356882178,1743369038399,-85.64287145,0.00015,2]
[356882179,1743369038411,-6704.75993082,0.00015,2]
[356882180,1743369038422,-368.236945,0.00015,2]
[356882181,1743369038433,-17607.01598298,0.00015,2]
[356882182,1743369038448,-628.32002197,0.00015,2]
[356882183,1743369038460,-320.14840894,0.00015,2]
[356882184,1743369038471,-411.93182001,0.00015,2]
[356882193,1743369038979,-1000.0,0.00015,2]
[356882197,1743369040593,-16.429528,0.00015,2]
[356882198,1743369040887,-103.29595145,0.00015,2]
[356882199,1743369040910,-4226.87019724,0.00015,2]
[356882200,1743369040921,-625.11917532,0.00015,2]
[356882201,1743369041079,-44.85252645,0.00015,2]
[356882202,1743369041091,-19708.14664987,0.00015,2]
[356882209,1743369043485,-1220.36365,0.00015,2]
[356882210,1743369044738,-22151.63343273,0.00015,2]
[356882211,1743369044750,-83810.16562142,0.00015,2]
[356882214,1743369046367,-120.93965491,0.00015,2]
[356882216,1743369046850,-134.57616277,0.00015,2]
[356882217,1743369046862,-652.94562,0.00015,2]
[356882218,1743369046918,-141.07834179,0.00015,2]
[356882219,1743369050023,-150.0,0.00015,2]
[356882220,1743369050954,-150.0,0.00015,2]
[356882221,1743369051629,-150.0,0.00015,2]
[356882222,1743369052171,-150.0,0.00015,2]
[356882223,1743369052644,-150.0,0.00015,2]
[356882224,1743369053628,-150.0,0.00015,2]
[356882225,1743369054762,-150.0,0.00015,2]
[356882226,1743369055156,-150.0,0.00015,2]
[356882227,1743369056679,-150.0,0.00015,2]
[356882229,1743369117233,-594.3773,0.000149,2]
[356882230,1743369117254,-1000.0,0.00014999,2]
[356882231,1743369117279,-168775.6227,0.00015,2]
[356882232,1743369147262,158.07644563,0.00014789,2]
[356882234,1743369354280,1000.0,0.00033481,30]
[356882235,1743369355087,1000.0,0.00033481,30]
[356882236,1743369355702,1000.0,0.00033481,30]
[356882237,1743369356274,1000.0,0.00033481,30]
[356882238,1743369357323,1000.0,0.00033481,30]
[356882239,1743369357931,1000.0,0.00033481,30]
[356882240,1743369358525,1000.0,0.00033481,30]
[356882241,1743369359526,1000.0,0.00033481,30]
[356882242,1743369360120,1000.0,0.00033481,30]
[356882243,1743369360702,1000.0,0.00033481,30]
[356882244,1743369361273,1000.0,0.00033481,30]
[356882245,1743369362278,1000.0,0.00033481,30]
[356882246,1743369362853,1000.0,0.00033481,30]
[356882247,1743369363866,1000.0,0.00033481,30]
[356882248,1743369365346,1000.0,0.00033481,30]
[356882249,1743369365926,1000.0,0.00033481,30]
[356882250,1743369366476,1000.0,0.00033481,30]
[356882251,1743369367081,1000.0,0.00033481,30]
[356882252,1743369367937,1000.0,0.00033481,30]
[356882253,1743369368640,1000.0,0.00033481,30]
[356882254,1743369369072,1000.0,0.00033481,30]
[356882255,1743369369669,1000.0,0.00033481,30]
[356882256,1743369370279,1000.0,0.00033481,30]
[356882257,1743369370836,1000.0,0.00033481,30]
[356882258,1743369371453,1000.0,0.00033481,30]
[356882259,1743369372031,1000.0,0.00033481,30]
[356882260,1743369373045,1000.0,0.00033481,30]
[356882261,1743369373659,983.89347623,0.00033481,30]
[356882262,1743369751281,1000.0,0.00033484,120]
[356882263,1743369780076,1000.0,0.00033484,120]
[356882264,1743369800569,1000.0,0.00033484,120]
[356882265,1743369810897,1000.0,0.00033484,120]
[356882266,1743369842131,1000.0,0.00033484,30]
[356882267,1743369847507,1000.0,0.00033484,30]
[356882268,1743369861365,1000.0,0.00033484,60]
[356882269,1743369863950,1000.0,0.00033484,60]
[356882270,1743369881514,1000.0,0.00033484,60]
[356882271,1743369884484,1000.0,0.00033484,60]
[356882272,1743369900699,1000.0,0.00033484,90]
[356882273,1743369903246,1000.0,0.00033484,90]
[356882274,1743369905083,1000.0,0.00033484,90]
[356882275,1743369927313,1000.0,0.00033484,100]
[356882276,1743369928434,736.47519727,0.00011,2]
[356882277,1743369928463,2947.42556341,0.00011,2]
[356882278,1743369929314,1000.0,0.00033484,100]
[356882279,1743369931307,1000.0,0.00033484,100]
[356882280,1743369933305,1000.0,0.00033484,100]
[356882281,1743369937113,2464.85879175,8e-05,2]
[356882282,1743369937135,1367.25453152,8e-05,2]
[356882283,1743369963413,5242.12997051,8e-05,2]
[356882284,1743369966217,1000.0,0.00033484,110]
[356882285,1743369968771,1000.0,0.00033484,110]
[356882286,1743369970913,1000.0,0.00033484,110]
[356882287,1743370030765,400.0,0.000144,5]
[356882288,1743370032859,800.0,0.000145,5]
[356882289,1743370034961,1300.0,0.000146,5]
[356882290,1743370036524,1000.0,0.00033484,115]
[356882291,1743370037063,1700.0,0.000147,5]
[356882292,1743370039104,1000.0,0.00033484,115]
[356882293,1743370039171,2200.0,0.000148,5]
[356882294,1743370041273,1000.0,0.00033484,115]
[356882295,1743370041310,400.0,0.000149,5]
[356882296,1743370100228,500.0,0.00033484,118]
[356882297,1743370102111,500.0,0.00033484,118]
[356882302,1743370117642,1431.15276574,0.0001,2]
[356882303,1743370124313,500.0,0.00033484,118]
[356882308,1743370147055,500.0,0.00033484,118]
[356882311,1743370159289,500.0,0.00033484,119]
[356882316,1743370163328,500.0,0.00033484,119]
[356882317,1743370173002,500.0,0.00033484,119]
[356882320,1743370215920,500.0,0.00033487,116]
[356882321,1743370222128,500.0,0.00033487,116]
[356882322,1743370224583,500.0,0.00033487,116]
[356882331,1743370231543,-150.0,0.00014899,2]
[356882332,1743370231553,-140.00835356,0.000149,2]
[356882333,1743370231566,-1242.75964644,0.000149,2]
[356882334,1743370231576,-1000.0,0.000149,2]
[356882335,1743370231586,-4820.3771,0.000149,2]
[356882336,1743370231595,-177.02593235,0.000149,2]
[356882337,1743370231605,-467.08450751,0.000149,2]
[356882338,1743370231614,-2500.0,0.000149,2]
[356882339,1743370231624,-212.99892041,0.000149,2]
[356882340,1743370231633,-189.06245448,0.000149,2]
[356882341,1743370231642,-2521.82473981,0.000149,2]
[356882342,1743370231654,-5787.24239276,0.000149,2]
[356882343,1743370231669,-1212.29658292,0.000149,2]
[356882344,1743370231679,-1121.456868,0.000149,2]
[356882345,1743370231689,-467.08450745,0.00014958,2]
[356882346,1743370231698,-310.08367057,0.00014999,2]
[356882347,1743370231708,-114771.90316174,0.00015,2]
[356882348,1743370231720,-166361.21734028,0.00015,2]
[356882349,1743370231729,-190469.30365972,0.00015,2]
[356882350,1743370231740,-35000.0,0.00015,2]
[356882351,1743370231752,-96794.1773373,0.00015,2]
[356882352,1743370231764,-370.04022624,0.00015,2]
[356882353,1743370231775,-610.0,0.00015,2]
[356882354,1743370231786,-350.0,0.00015,2]
[356882355,1743370231797,-1391.08289891,0.00015,2]
[356882356,1743370231812,-905.69823873,0.00015,2]
[356882378,1743370237423,-1200.0,0.00015,2]
[356882379,1743370237436,-2274.40999996,0.00015,2]
[356882380,1743370237447,-1217.63557993,0.00015,2]
[356882381,1743370237480,-19241.26182766,0.00015,2]
[356882382,1743370237492,-604.71309673,0.00015,2]
[356882383,1743370237503,-435.57595788,0.00015,2]
[356882384,1743370237514,-59444.64813878,0.00015,2]
[356882385,1743370237654,-257.26787767,0.00015,2]
[356882386,1743370237694,-21.57531798,0.00015,2]
[356882387,1743370237707,-2115.47849276,0.00015,2]
[356882391,1743370239720,-4964.31847984,0.00015,2]
[356882392,1743370239732,-583.73020271,0.00015,2]
[356882393,1743370239744,-919.39818052,0.00015,2]
[356882394,1743370239755,-14059.15453119,0.00015,2]
[356882395,1743370239778,-17180.38214028,0.00015,2]
[356882396,1743370239838,-127998.99775725,0.00015,2]
[356882435,1743370244147,-672.54591315,0.00015,2]
[356882436,1743370244158,-707.3898016,0.00015,2]
[356882437,1743370245532,-438.7763322,0.00015,2]
[356882438,1743370245544,-941.635,0.00015,2]
[356882441,1743370246485,-130.79374087,0.00015,2]
[356882442,1743370246498,-829.47109632,0.00015,2]
[356882443,1743370246510,-544.999995,0.00015,2]
[356882444,1743370282746,500.0,0.00033487,115]
[356882445,1743370284265,500.0,0.00033487,115]
[356882446,1743370321657,-150.0,0.00021198,7]
[356882447,1743370321682,-509.233504,0.000248,7]
[356882448,1743370321705,-509.233504,0.000248,7]
[356882449,1743370321727,-151.0,0.000248,7]
[356882450,1743370321749,-151.0,0.000248,7]
[356882451,1743370321771,-151.0,0.000248,7]
[356882452,1743370321794,-151.0,0.000248,7]
[356882453,1743370321816,-151.0,0.000248,7]
[356882454,1743370321837,-151.0,0.000248,7]
[356882455,1743370321860,-151.0,0.000248,7]
[356882456,1743370321883,-151.0,0.000248,7]
[356882457,1743370321904,-151.0,0.000248,7]
[356882458,1743370321926,-321.122392,0.000248,7]
[356882459,1743370321948,-321.122392,0.000248,7]
[356882460,1743370321975,-151.0,0.000248,7]
[356882461,1743370321997,-151.0,0.000248,7]
[356882462,1743370322020,-151.0,0.000248,7]
[356882463,1743370322045,-424.944671,0.000248,7]
[356882464,1743370322071,-424.944671,0.000248,7]
[356882465,1743370322094,-151.0,0.000248,7]
[356882466,1743370322118,-151.0,0.000248,7]
[356882467,1743370322142,-151.0,0.000248,7]
[356882468,1743370322165,-151.0,0.000248,7]
[356882469,1743370322190,-229.648749,0.000248,7]
[356882470,1743370322214,-229.648749,0.000248,7]
[356882471,1743370322236,-151.0,0.000248,7]
[356882472,1743370322258,-2678.68981,0.000248,7]
[356882473,1743370322280,-152.545247,0.000248,7]
[356882474,1743370322303,-2678.68981,0.000248,7]
[356882475,1743370322324,-151.0,0.000248,7]
[356882476,1743370322346,-151.0,0.000249,7]
[356882477,1743370322367,-151.0,0.000249,7]
[356882478,1743370322388,-151.100674,0.000249,7]
[356882479,1743370322410,-151.0,0.000249,7]
[356882480,1743370322431,-151.0,0.000249,7]
[356882481,1743370322452,-151.0,0.000249,7]
[356882482,1743370322473,-151.0,0.000249,7]
[356882483,1743370322495,-151.0,0.000249,7]
[356882484,1743370322516,-151.0,0.000249,7]
[356882485,1743370322539,-151.0,0.000249,7]
[356882486,1743370322560,-169.848122,0.000249,7]
[356882487,1743370322584,-169.848122,0.000249,7]
[356882488,1743370322606,-151.0,0.000249,7]
[356882489,1743370322629,-151.0,0.000249,7]
[356882490,1743370322651,-151.0,0.000249,7]
[356882491,1743370322674,-151.0,0.000249,7]
[356882492,1743370322696,-151.0,0.000249,7]
[356882493,1743370322718,-229.648749,0.000249,7]